bitfinex-derivatives/quotes_BTCF0:USTF0_20250127
["timestamp","ask_amount","ask_price","bid_price","bid_amount"]
[1738010235003,0.19868422,100790.0,100780.0,0.55934]
[1738010236619,0.19868422,100790.0,100780.0,0.3608]
[1738010236816,0.198553,100780.0,100770.0,0.36094922]
[1738010237009,0.34118318,100780.0,100770.0,0.00014922]
[1738010237420,0.70198318,100780.0,100770.0,0.00014922]
[1738010237613,0.50343018,100780.0,100760.0,0.003]
[1738010237916,0.50343018,100780.0,100750.0,0.00148845]
[1738010237917,0.198592,100760.0,100750.0,0.00148845]
[1738010238117,0.70202218,100760.0,100750.0,0.00148845]
[1738010238419,0.198631,100750.0,100730.0,0.84584662]
[1738010238608,0.3608,100750.0,100730.0,2.34584662]
[1738010238805,0.198631,100740.0,100730.0,2.34599584]
[1738010239314,0.00014922,100750.0,100730.0,0.65690495]
[1738010239510,0.19876722,100750.0,100740.0,0.198631]
[1738010239713,0.198631,100740.0,100730.0,2.35553995]
[1738010240420,0.198631,100740.0,100730.0,2.34898584]
[1738010241012,0.34126118,100740.0,100730.0,1.78955084]
[1738010241213,0.252931,100740.0,100730.0,2.34900184]
[1738010241416,0.198631,100740.0,100730.0,1.98820184]
[1738010241616,0.198631,100740.0,100730.0,2.34900184]
[1738010241916,0.198631,100740.0,100730.0,2.06260022]
[1738010242713,0.6088794,100750.0,100730.0,2.06260022]
[1738010242912,0.002,100740.0,100730.0,2.05960022]
[1738010243111,0.002,100740.0,100730.0,2.2022304]
[1738010243414,0.0512,100770.0,100760.0,0.198592]
[1738010243618,0.0512,100770.0,100760.0,0.559392]
[1738010243816,0.19383018,100770.0,100750.0,0.559406]
[1738010244012,0.34122218,100760.0,100750.0,0.559406]
[1738010244320,0.198592,100760.0,100750.0,0.559406]
[1738010244519,0.14263018,100760.0,100740.0,0.00014922]
[1738010244710,0.70204218,100750.0,100740.0,0.00014922]
[1738010244907,0.80684218,100750.0,100740.0,0.00014922]
[1738010245105,0.198651,100730.0,100720.0,0.559459]
[1738010245307,0.34128118,100730.0,100720.0,0.559459]
[1738010245514,0.75266718,100740.0,100730.0,0.198651]
[1738010246016,0.198651,100730.0,100720.0,0.559461]
[1738010246316,0.198671,100720.0,100710.0,0.19883522]
[1738010246518,0.34130118,100720.0,100710.0,0.19883522]
[1738010246819,0.70210118,100720.0,100710.0,0.00014922]
[1738010247016,0.80600118,100720.0,100710.0,0.00014922]
[1738010247612,0.80600118,100720.0,100710.0,0.00214922]
[1738010249008,0.663371,100720.0,100710.0,0.00214922]
[1738010249318,0.663371,100720.0,100710.0,0.00114922]
[1738010250106,0.80600118,100720.0,100710.0,0.00014922]
[1738010250606,0.1039,100720.0,100710.0,0.19883922]
[1738010250806,0.56883902,100730.0,100720.0,0.198671]
[1738010251007,0.559453,100730.0,100720.0,0.198671]
[1738010251214,0.34128318,100730.0,100720.0,0.198671]
[1738010251413,0.86447735,100740.0,100730.0,0.198651]
[1738010252611,0.71228622,100740.0,100730.0,0.198651]
[1738010252821,0.6562794,100740.0,100720.0,1.8608]
[1738010253017,0.34128118,100730.0,100720.0,0.559454]
[1738010253322,0.50343018,100730.0,100710.0,0.55962622]
[1738010253626,0.70209318,100730.0,100720.0,0.19867]
[1738010253826,0.198663,100730.0,100720.0,0.19867]
[1738010254125,0.00014922,100740.0,100730.0,0.198651]
[1738010254312,0.00014922,100740.0,100730.0,0.70208118]
[1738010254510,0.00014922,100740.0,100730.0,0.559451]
[1738010255114,0.00014922,100740.0,100730.0,0.70208118]
[1738010255311,0.46370095,100780.0,100760.0,0.198591]
[1738010255513,0.46370095,100780.0,100770.0,0.198572]
[1738010255712,0.46370095,100780.0,100760.0,0.3608]
[1738010255713,0.40776613,100780.0,100760.0,0.3608]
[1738010255927,0.559385,100770.0,100760.0,1.698589]
[1738010256115,0.559385,100770.0,100760.0,1.5]
[1738010256420,0.198591,100760.0,100750.0,0.3608]
[1738010256624,0.665176,100770.0,100760.0,0.198591]
[1738010257118,0.198591,100760.0,100750.0,0.55955522]
[1738010257425,0.198575,100770.0,100760.0,0.198591]
[1738010257611,0.198575,100770.0,100760.0,0.559391]
[1738010257928,0.198575,100770.0,100760.0,0.198591]
[1738010258217,0.14263018,100770.0,100750.0,2.05954722]
[1738010258423,0.198591,100760.0,100750.0,0.55954722]
[1738010261328,0.611574,100770.0,100760.0,0.198591]
[1738010261826,0.250774,100770.0,100760.0,0.198591]
[1738010262519,0.413,100770.0,100750.0,0.36094922]
[1738010262820,0.198591,100760.0,100750.0,0.55955822]
[1738010264022,0.70202118,100760.0,100750.0,0.00014922]
[1738010264226,0.75372118,100760.0,100750.0,0.00014922]
[1738010264420,0.99776036,100760.0,100710.0,0.3608]
[1738010264626,0.19867,100720.0,100710.0,0.37019911]
[1738010264926,0.19867,100720.0,100710.0,0.559489]
[1738010265221,0.198689,100710.0,100700.0,1.29327045]
[1738010265614,0.198689,100710.0,100700.0,0.73376445]
[1738010265816,0.559489,100710.0,100700.0,0.73376445]
[1738010266016,0.70211918,100710.0,100700.0,0.73227507]
[1738010266215,0.70211918,100710.0,100700.0,0.30816607]
[1738010266422,0.198729,100690.0,100680.0,0.00948256]
[1738010266633,0.198749,100680.0,100670.0,0.50959938]
[1738010266819,0.70217918,100680.0,100670.0,0.50959938]
[1738010267019,0.50343018,100700.0,100670.0,0.87039938]
[1738010267216,0.198713,100700.0,100690.0,0.559529]
[1738010267419,0.82556515,100710.0,100690.0,0.559529]
[1738010267619,0.198709,100700.0,100690.0,0.559529]
[1738010268031,0.71183537,100710.0,100690.0,0.3608]
[1738010268219,0.198709,100700.0,100690.0,0.198726]
[1738010268419,0.198729,100690.0,100680.0,0.00014922]
[1738010268624,0.70215918,100690.0,100680.0,0.00014922]
[1738010269424,0.34135918,100690.0,100680.0,0.00014922]
[1738010269628,0.70215918,100690.0,100680.0,0.00014922]
[1738010270222,0.70215918,100690.0,100680.0,0.00114922]
[1738010271533,0.90881967,100690.0,100680.0,0.00114922]
[1738010272231,0.198762,100680.0,100660.0,0.200272]
[1738010272430,0.14263018,100670.0,100660.0,1.700272]
[1738010272827,0.14263018,100670.0,100660.0,2.061072]
[1738010273023,0.14263018,100670.0,100660.0,1.700272]
[1738010273328,0.34139818,100670.0,100660.0,0.200272]
[1738010273526,0.34139818,100670.0,100660.0,0.203272]
[1738010275221,0.14263018,100670.0,100660.0,0.200272]
[1738010275426,0.14263018,100670.0,100660.0,0.203272]
[1738010275621,0.34139918,100670.0,100660.0,0.203272]
[1738010276835,0.14263018,100670.0,100660.0,0.564072]
[1738010277037,0.20597246,100680.0,100660.0,0.36529]
[1738010277338,0.20597246,100680.0,100670.0,0.198769]
[1738010277838,0.20597246,100680.0,100670.0,0.559569]
[1738010277839,0.00014922,100680.0,100670.0,0.559569]
[1738010278334,0.1427794,100680.0,100670.0,0.559569]
[1738010278726,0.00014922,100680.0,100670.0,0.559569]
[1738010280332,0.3415284,100680.0,100670.0,0.002]
[1738010280637,0.3415284,100680.0,100670.0,0.200768]
[1738010281139,0.3415284,100680.0,100670.0,0.561568]
[1738010281534,0.00014922,100680.0,100670.0,0.561568]
[1738010281929,0.3415274,100680.0,100670.0,0.002]
[1738010282129,0.84495758,100680.0,100670.0,0.002]
[1738010282337,0.7023274,100680.0,100670.0,0.002]
[1738010282532,0.84495758,100680.0,100670.0,0.002]
[1738010282838,0.7536274,100680.0,100670.0,0.002]
[1738010283040,0.89625758,100680.0,100670.0,0.002]
[1738010284140,0.7536274,100680.0,100670.0,0.002]
[1738010285138,0.89625758,100680.0,100670.0,0.002]
[1738010285433,0.7536274,100680.0,100670.0,0.002]
[1738010285629,0.89625758,100680.0,100670.0,0.002]
[1738010286032,0.7536274,100680.0,100670.0,0.002]
[1738010286230,0.7023274,100680.0,100670.0,0.200768]
[1738010286430,0.00014922,100680.0,100670.0,0.561568]
[1738010286731,0.00014922,100680.0,100670.0,0.70419818]
[1738010286934,0.59225247,100700.0,100680.0,0.198733]
[1738010287127,0.34135818,100690.0,100680.0,0.559533]
[1738010287440,0.14263018,100690.0,100680.0,0.559533]
[1738010287637,0.14263018,100690.0,100680.0,2.059533]
[1738010287933,0.19197151,100700.0,100690.0,0.198728]
[1738010288142,0.08897151,100700.0,100690.0,0.559528]
[1738010289128,0.26513595,100710.0,100700.0,0.198709]
[1738010289431,0.60645513,100710.0,100700.0,0.559509]
[1738010289635,0.26513595,100710.0,100700.0,0.559509]
[1738010289938,0.59189787,100720.0,100700.0,1.8608]
[1738010290139,0.34131918,100710.0,100700.0,2.059506]
[1738010290443,0.198689,100710.0,100700.0,2.05965522]
[1738010290744,0.42992309,100720.0,100710.0,0.198689]
[1738010291035,0.42992309,100720.0,100710.0,0.559489]
[1738010291036,0.08861691,100720.0,100710.0,0.559489]
[1738010291237,0.08861691,100720.0,100710.0,0.611389]
[1738010292239,0.28828691,100720.0,100710.0,0.611389]
[1738010292430,0.23224709,100720.0,100700.0,1.86192137]
[1738010292741,0.19869,100710.0,100700.0,0.55982037]
[1738010293138,0.70212018,100710.0,100700.0,0.00032137]
[1738010295238,0.70312018,100710.0,100700.0,0.00032137]
[1738010295542,0.001,100710.0,100700.0,1.06326055]
[1738010295731,0.001,100710.0,100700.0,1.11516055]
[1738010296127,0.00014922,100720.0,100700.0,2.41645155]
[1738010296342,0.00014922,100720.0,100710.0,0.559489]
[1738010296931,0.17690652,100720.0,100710.0,0.70211918]
[1738010297132,0.17690652,100720.0,100710.0,0.559489]
[1738010298439,0.37557552,100720.0,100710.0,0.559489]
[1738010298830,0.17690652,100720.0,100710.0,0.559489]
[1738010299032,0.17690652,100720.0,100710.0,0.70211918]
[1738010299940,0.00014922,100720.0,100710.0,0.559489]
[1738010300841,0.00014922,100720.0,100710.0,0.70211918]
[1738010301536,0.30648142,100740.0,100730.0,0.19865]
[1738010301737,0.30648142,100740.0,100730.0,0.55945]
[1738010302932,0.10784342,100740.0,100730.0,0.92025]
[1738010303131,0.10784342,100740.0,100730.0,1.11408018]
[1738010303841,0.14824345,100750.0,100730.0,0.91543018]
[1738010304147,0.00014922,100750.0,100740.0,0.55943]
[1738010304838,0.00014922,100750.0,100740.0,0.70206018]
[1738010305041,0.32485153,100760.0,100750.0,0.19861]
[1738010305235,0.32485153,100760.0,100750.0,0.75524018]
[1738010305544,0.32485153,100760.0,100750.0,0.80534018]
[1738010306343,0.32485153,100760.0,100750.0,0.80734018]
[1738010306539,0.32485153,100760.0,100750.0,0.66471]
[1738010307133,0.14809423,100760.0,100750.0,2.16371]
[1738010307437,0.1427794,100770.0,100750.0,1.8618]
[1738010307742,0.3413594,100770.0,100760.0,0.55938]
[1738010308042,0.00014922,100770.0,100760.0,0.55938]
[1738010311837,0.19871022,100770.0,100760.0,0.55938]
[1738010312640,0.00014922,100770.0,100760.0,0.55938]
[1738010313841,0.19872122,100770.0,100760.0,0.55938]
[1738010314645,0.00014922,100770.0,100760.0,0.55938]
[1738010315641,0.00014922,100770.0,100760.0,2.05938]
[1738010315838,0.19872022,100770.0,100760.0,2.05938]
[1738010316345,0.00014922,100770.0,100760.0,2.05938]
[1738010316648,0.00014922,100770.0,100760.0,2.25311018]
[1738010317735,0.00014922,100770.0,100760.0,2.05938]
[1738010319249,0.19872022,100770.0,100760.0,2.05938]
[1738010324453,0.00014922,100770.0,100760.0,2.05938]
[1738010325354,0.00014922,100770.0,100760.0,2.20201018]
[1738010325551,0.00014922,100770.0,100760.0,0.70201018]
[1738010326053,0.00014922,100770.0,100760.0,2.25281018]
[1738010327456,0.30985757,100790.0,100760.0,2.25281018]
[1738010327457,0.30985757,100790.0,100780.0,0.198551]
[1738010327750,0.45248775,100790.0,100780.0,0.198551]
[1738010328548,0.25394875,100790.0,100770.0,0.36094922]
[1738010328747,0.198541,100780.0,100770.0,0.55949222]
[1738010330551,0.34117118,100780.0,100770.0,0.55949222]
[1738010330757,0.34117118,100780.0,100770.0,0.00014922]
[1738010330952,0.70197118,100780.0,100770.0,0.00014922]
[1738010331455,0.34117118,100780.0,100770.0,0.00014922]
[1738010332457,0.34117118,100780.0,100770.0,0.19871722]
[1738010333655,0.34117118,100780.0,100770.0,0.55951722]
[1738010333854,0.198541,100780.0,100770.0,0.19871722]
[1738010334755,0.29317252,100780.0,100770.0,0.19871722]
[1738010334947,0.29317252,100780.0,100770.0,0.55951722]
[1738010335142,0.46992982,100780.0,100770.0,0.55951722]
[1738010336050,0.1767573,100780.0,100770.0,0.55951722]
[1738010336252,0.1767573,100780.0,100770.0,0.65414874]
[1738010336452,0.1767573,100780.0,100770.0,0.55951722]
[1738010337062,0.1767573,100780.0,100770.0,2.05951722]
[1738010337862,0.27138882,100780.0,100770.0,2.05951722]
[1738010338363,0.44195562,100780.0,100770.0,0.55951722]
[1738010338557,0.44195562,100780.0,100770.0,0.19871722]
[1738010338962,0.44195562,100780.0,100770.0,1.69871722]
[1738010339761,0.44195562,100780.0,100770.0,2.05951722]
[1738010340057,0.44195562,100780.0,100770.0,1.69871722]
[1738010340263,0.1487711,100780.0,100770.0,2.05951722]
[1738010340563,0.44195562,100780.0,100770.0,2.05951722]
[1738010341265,0.80275562,100780.0,100770.0,0.00014922]
[1738010341652,0.44195562,100780.0,100770.0,0.19872122]
[1738010341855,0.3473241,100780.0,100770.0,0.19872122]
[1738010342364,0.44195562,100780.0,100770.0,0.19872122]
[1738010342766,0.44195562,100780.0,100770.0,0.55952122]
[1738010342961,0.3473241,100780.0,100770.0,0.55952122]
[1738010343264,0.44195362,100780.0,100770.0,0.55952122]
[1738010343463,0.44195362,100780.0,100770.0,0.19872122]
[1738010344163,0.1487711,100780.0,100770.0,0.55952122]
[1738010344359,1e-07,100780.0,100770.0,0.74878426]
[1738010344566,0.23567641,100810.0,100780.0,0.049636]
[1738010344767,0.66980782,100830.0,100820.0,0.198472]
[1738010344963,0.47135282,100830.0,100820.0,0.559272]
[1738010345358,0.47135282,100830.0,100820.0,2.51470352]
[1738010345557,0.26513596,100830.0,100820.0,2.470472]
[1738010345753,0.46358896,100830.0,100820.0,2.470472]
[1738010346262,0.46358896,100830.0,100820.0,2.109672]
[1738010346263,0.55822048,100830.0,100820.0,2.109672]
[1738010346563,0.46358896,100830.0,100820.0,2.109672]
[1738010348359,0.26513596,100830.0,100820.0,2.25146287]
[1738010348565,0.26513596,100830.0,100820.0,2.61226287]
[1738010349273,0.5025025,100850.0,100840.0,0.198432]
[1738010349274,0.20790699,100850.0,100840.0,0.198432]
[1738010349462,0.20790699,100850.0,100840.0,0.559232]
[1738010349773,0.252107,100860.0,100850.0,0.198413]
[1738010349972,0.252107,100860.0,100850.0,0.559213]
[1738010350471,0.252107,100860.0,100850.0,2.059213]
[1738010350767,0.39389787,100860.0,100850.0,0.559213]
[1738010351270,0.252107,100860.0,100850.0,0.559213]
[1738010351666,0.26187218,100860.0,100850.0,0.559213]
[1738010352576,0.0537,100860.0,100850.0,0.70100387]
[1738010353868,0.0537,100860.0,100850.0,0.559213]
[1738010354174,0.252093,100860.0,100850.0,0.559213]
[1738010355873,0.252093,100860.0,100850.0,0.198413]
[1738010356276,0.198413,100850.0,100840.0,0.56895087]
[1738010356571,0.198413,100850.0,100840.0,0.71074174]
[1738010357974,0.252101,100860.0,100850.0,0.198413]
[1738010358176,0.252101,100860.0,100850.0,0.559213]
[1738010358974,0.20755254,100870.0,100860.0,0.198394]
[1738010359273,0.20755254,100870.0,100860.0,0.70098487]
[1738010359472,0.198374,100870.0,100860.0,0.559191]
[1738010359676,0.34017387,100870.0,100860.0,0.198394]
[1738010359973,0.1083,100870.0,100860.0,0.70098487]
[1738010360172,0.75807147,100890.0,100870.0,0.198359]
[1738010360485,0.86637147,100890.0,100880.0,0.198355]
[1738010360668,0.86637147,100890.0,100860.0,0.65918387]
[1738010360864,0.86637147,100890.0,100880.0,0.198355]
[1738010360865,0.30664,100890.0,100880.0,0.198355]
[1738010361168,0.25009087,100890.0,100880.0,0.198355]
[1738010361878,0.1083,100890.0,100880.0,0.559155]
[1738010362375,0.0537,100890.0,100880.0,2.059155]
[1738010362572,0.71539087,100900.0,100890.0,0.198336]
[1738010362781,0.91370687,100900.0,100890.0,0.198336]
[1738010363482,0.55290687,100900.0,100890.0,0.198336]
[1738010363780,0.2128,100900.0,100890.0,0.559136]
[1738010363975,0.155,100900.0,100890.0,0.559136]
[1738010364370,0.1,100900.0,100890.0,0.70092687]
[1738010364580,0.23557899,100910.0,100900.0,0.198316]
[1738010364774,0.52367506,100920.0,100910.0,0.198296]
[1738010364970,0.52307505,100920.0,100910.0,0.198296]
[1738010365173,0.52307505,100920.0,100910.0,1.698296]
[1738010365777,0.198296,100910.0,100900.0,0.559113]
[1738010365975,0.198316,100900.0,100890.0,0.19848122]
[1738010366175,0.81390687,100900.0,100890.0,0.00014922]
[1738010366573,0.81390687,100900.0,100890.0,0.01014857]
[1738010366784,0.76651674,100900.0,100890.0,0.19848422]
[1738010367285,0.40571674,100900.0,100890.0,0.19848422]
[1738010367669,0.40571674,100900.0,100890.0,0.00014922]
[1738010368075,0.40571674,100900.0,100890.0,0.19848422]
[1738010368379,0.40571674,100900.0,100890.0,0.55928422]
[1738010368780,0.40571674,100900.0,100890.0,0.00014922]
[1738010368984,0.198335,100890.0,100880.0,0.198355]
[1738010369183,0.60440148,100890.0,100870.0,0.198366]
[1738010369480,0.14920074,100890.0,100880.0,0.559155]
[1738010369980,0.70833974,100890.0,100870.0,2.059166]
[1738010370182,0.09440074,100880.0,100870.0,2.05931522]
[1738010370383,0.09440074,100880.0,100870.0,0.36094922]
[1738010370582,0.09440074,100880.0,100870.0,0.55932422]
[1738010370784,0.09440074,100880.0,100870.0,0.19852422]
[1738010371177,0.09440074,100880.0,100870.0,0.55932422]
[1738010371987,0.14920074,100890.0,100880.0,0.198355]
[1738010372190,0.0548,100890.0,100880.0,0.559155]
[1738010372881,0.05484922,100900.0,100890.0,0.198335]
[1738010373076,0.00014922,100900.0,100890.0,0.65353574]
[1738010373273,0.21204813,100920.0,100910.0,0.198296]
[1738010373478,0.21204813,100920.0,100910.0,0.559096]
[1738010373676,0.11764739,100920.0,100910.0,0.559096]
[1738010374078,0.1095,100930.0,100910.0,0.81600074]
[1738010374385,0.17634629,100950.0,100940.0,0.198237]
[1738010374581,0.29459551,100960.0,100940.0,0.81600074]
[1738010374787,0.82734294,100970.0,100950.0,0.45520074]
[1738010375079,0.50071495,100970.0,100960.0,0.558998]
[1738010375277,0.50071495,100970.0,100960.0,0.65339874]
[1738010375480,0.50071495,100970.0,100960.0,0.57285148]
[1738010375788,0.50071495,100970.0,100960.0,0.47845074]
[1738010376182,0.50071495,100970.0,100960.0,0.57285148]
[1738010376686,0.50971495,100970.0,100960.0,0.62078874]
[1738010377986,0.50971495,100970.0,100960.0,0.47945074]
[1738010379175,0.70789595,100970.0,100960.0,0.4892786]
[1738010379383,0.70789595,100970.0,100960.0,0.1284786]
[1738010379591,0.348519,100970.0,100960.0,0.1284786]
[1738010379782,0.263081,100970.0,100960.0,0.1284786]
[1738010380090,0.263081,100970.0,100960.0,0.01082786]
[1738010380284,0.765219,100970.0,100960.0,0.01082786]
[1738010380586,0.765219,100970.0,100960.0,0.001]
[1738010381289,0.19822,100950.0,100940.0,0.01004254]
[1738010381483,0.700358,100950.0,100940.0,0.01004254]
[1738010382284,0.700358,100950.0,100940.0,0.00014922]
[1738010382883,0.763258,100950.0,100940.0,0.00014922]
[1738010384088,0.62192,100950.0,100940.0,0.00014922]
[1738010384290,0.005,100950.0,100940.0,0.55918822]
[1738010385290,0.146338,100950.0,100940.0,0.19838822]
[1738010385482,0.344558,100950.0,100940.0,0.55918822]
[1738010385687,0.20322,100950.0,100940.0,0.55918822]
[1738010386188,0.344558,100950.0,100940.0,0.00014922]
[1738010386695,0.20322,100950.0,100940.0,0.19838822]
[1738010386883,0.005,100950.0,100940.0,0.19838822]
[1738010387083,0.005,100950.0,100940.0,0.55918822]
[1738010387285,0.344558,100950.0,100940.0,0.55918822]
[1738010387891,0.20322,100950.0,100940.0,0.55918822]
[1738010388199,0.005,100950.0,100940.0,0.55918822]
[1738010388586,0.344558,100950.0,100940.0,0.55918822]
[1738010390501,0.344558,100950.0,100940.0,0.00014922]
[1738010390502,0.705358,100950.0,100940.0,0.00014922]
[1738010391000,0.69795764,100950.0,100940.0,0.00014922]
[1738010391194,0.502138,100950.0,100910.0,0.96324586]
[1738010391496,0.700416,100920.0,100910.0,0.40415486]
[1738010391696,0.700416,100920.0,100910.0,1.90415486]
[1738010392289,0.841754,100920.0,100910.0,1.90615486]
[1738010392592,0.700416,100920.0,100910.0,0.006]
[1738010392793,0.841754,100920.0,100910.0,0.006]
[1738010393089,0.339616,100920.0,100910.0,0.006]
[1738010393296,0.700416,100920.0,100910.0,0.006]
[1738010394096,0.339616,100920.0,100910.0,0.006]
[1738010394694,0.339616,100920.0,100910.0,0.004]
[1738010395002,0.198297,100910.0,100900.0,2.2328024]
[1738010395294,0.339635,100910.0,100900.0,1.6736874]
[1738010395498,0.339635,100910.0,100900.0,1.8720044]
[1738010396206,0.343635,100910.0,100900.0,1.8720044]
[1738010397002,0.202297,100910.0,100900.0,2.2328044]
[1738010397695,0.206297,100910.0,100900.0,2.06026622]
[1738010398003,0.347635,100910.0,100900.0,2.06026622]
[1738010398206,0.198297,100910.0,100900.0,2.05926622]
[1738010398396,0.344635,100910.0,100900.0,2.05926622]
[1738010399902,0.344635,100910.0,100900.0,0.55926622]
[1738010400198,0.399935,100910.0,100900.0,0.55926622]
[1738010400398,0.258597,100910.0,100900.0,0.55926622]
[1738010400604,0.399935,100910.0,100900.0,0.36094922]
[1738010400899,0.399935,100910.0,100900.0,0.55926622]
[1738010401096,0.258597,100910.0,100900.0,0.55926622]
[1738010401602,0.203297,100910.0,100900.0,0.55926622]
[1738010402504,0.005,100910.0,100900.0,0.55926622]
[1738010402696,0.005,100910.0,100900.0,0.70060422]
[1738010402891,0.005,100910.0,100900.0,0.75600422]
[1738010403197,0.19841022,100930.0,100920.0,0.198278]
[1738010403397,0.19841022,100930.0,100920.0,0.559078]
[1738010404301,0.00014922,100930.0,100920.0,0.559078]
[1738010404604,0.00014922,100930.0,100920.0,1.061216]
[1738010404898,0.00014922,100930.0,100920.0,1.115016]
[1738010405501,0.45654611,100950.0,100940.0,0.198238]
[1738010405803,0.309127,100950.0,100940.0,0.559038]
[1738010406504,0.198227,100950.0,100940.0,0.559038]
[1738010408107,0.202227,100950.0,100940.0,0.559038]
[1738010409302,0.343565,100950.0,100940.0,0.559038]
[1738010409708,0.563338,100950.0,100930.0,0.61420022]
[1738010410006,0.198237,100940.0,100930.0,0.61420022]
[1738010411205,0.199237,100940.0,100930.0,0.61420022]
[1738010411607,0.199237,100940.0,100930.0,0.41594922]
[1738010411803,0.701375,100940.0,100930.0,0.00996643]
[1738010412011,0.701375,100940.0,100930.0,0.00014922]
[1738010412205,0.610838,100940.0,100910.0,0.73262318]
[1738010412409,0.339615,100920.0,100910.0,0.53433818]
[1738010412704,0.700415,100920.0,100910.0,0.17353818]
[1738010412905,0.754415,100920.0,100910.0,0.17353818]
[1738010413508,0.754415,100920.0,100910.0,0.17553818]
[1738010414100,0.754415,100920.0,100910.0,0.18053818]
[1738010415103,0.754415,100920.0,100910.0,0.17853818]
[1738010415499,0.06,100920.0,100910.0,0.73363418]
[1738010415700,0.0542,100940.0,100910.0,0.67667618]
[1738010415901,0.198225,100950.0,100940.0,0.198236]
[1738010416107,0.250638,100960.0,100940.0,0.3608]
[1738010416308,0.448843,100960.0,100950.0,0.559016]
[1738010417298,0.307505,100960.0,100950.0,0.559016]
[1738010417711,0.309505,100960.0,100950.0,0.559016]
[1738010420909,0.309505,100960.0,100950.0,2.059016]
[1738010421107,0.450843,100960.0,100950.0,2.059016]
[1738010421312,0.4721,100960.0,100940.0,0.01237539]
[1738010421515,0.700354,100950.0,100940.0,0.00014922]
[1738010421912,0.198246,100930.0,100920.0,0.3608]
[1738010422217,0.198246,100930.0,100920.0,0.559065]
[1738010422406,0.198246,100930.0,100920.0,0.3608]
[1738010422910,0.198246,100930.0,100920.0,0.559065]
[1738010423909,0.198246,100930.0,100920.0,0.560065]
[1738010424113,0.198246,100930.0,100920.0,0.563065]
[1738010424716,0.19838822,100940.0,100930.0,0.198256]
[1738010425016,0.19838822,100940.0,100930.0,0.559056]
[1738010425210,0.19838822,100940.0,100920.0,0.563071]
[1738010425211,0.198256,100930.0,100920.0,0.563071]
[1738010425406,0.198256,100930.0,100920.0,0.202271]
[1738010425611,0.198256,100930.0,100920.0,0.563071]
[1738010426419,0.198256,100930.0,100920.0,0.560071]
[1738010426621,0.198256,100930.0,100920.0,0.559071]
[1738010427118,0.339594,100930.0,100920.0,0.201271]
[1738010427424,0.339594,100930.0,100920.0,0.202271]
[1738010427609,0.339594,100930.0,100920.0,0.004]
[1738010428013,0.808194,100930.0,100920.0,0.004]
[1738010428224,0.447394,100930.0,100920.0,0.004]
[1738010428516,0.00014922,100940.0,100920.0,0.506138]
[1738010428717,0.19838522,100940.0,100930.0,0.198256]
[1738010428924,0.198256,100930.0,100920.0,0.617065]
[1738010429220,0.198256,100930.0,100920.0,2.117065]
[1738010429417,0.339594,100930.0,100920.0,0.563065]
[1738010429617,0.196138,100930.0,100910.0,0.37344038]
[1738010429819,0.198275,100920.0,100910.0,0.57173538]
[1738010430028,0.30876,100930.0,100920.0,0.198275]
[1738010430323,0.30876,100930.0,100920.0,0.562075]
[1738010430519,0.25258322,100940.0,100930.0,0.198246]
[1738010430912,0.198246,100930.0,100920.0,0.560051]
[1738010431120,0.19568722,100940.0,100920.0,0.3618]
[1738010431422,0.198265,100930.0,100920.0,0.560074]
[1738010432214,0.339603,100930.0,100920.0,0.560074]
[1738010432627,0.339603,100930.0,100920.0,0.559074]
[1738010432810,0.141338,100930.0,100910.0,0.57773038]
[1738010433018,0.339614,100920.0,100910.0,0.57773038]
[1738010433319,0.339614,100920.0,100910.0,0.57173038]
[1738010433624,0.339614,100920.0,100910.0,0.37344038]
[1738010433820,0.392514,100920.0,100910.0,0.36094922]
[1738010434020,0.446214,100920.0,100910.0,0.56524422]
[1738010434218,0.304876,100920.0,100910.0,0.56724422]
[1738010434414,0.446214,100920.0,100910.0,0.00814922]
[1738010434618,0.807014,100920.0,100910.0,0.00814922]
[1738010434927,0.948352,100920.0,100910.0,0.00814922]
[1738010435226,0.948352,100920.0,100910.0,0.01414922]
[1738010435425,0.198305,100900.0,100890.0,0.40415486]
[1738010435726,0.339643,100900.0,100890.0,0.40415486]
[1738010435927,0.339643,100900.0,100890.0,0.96327886]
[1738010436334,0.339643,100900.0,100890.0,0.198324]
[1738010436627,0.339643,100900.0,100880.0,0.7880434]
[1738010436628,0.198344,100890.0,100880.0,0.7880434]
[1738010436824,0.700482,100890.0,100880.0,0.1736874]
[1738010437227,0.810782,100890.0,100880.0,0.1736874]
[1738010437824,0.810782,100890.0,100880.0,0.1756874]
[1738010439429,0.251638,100890.0,100880.0,0.1756874]
[1738010439620,0.141338,100900.0,100880.0,0.5364874]
[1738010439818,0.87137722,100910.0,100890.0,0.559135]
[1738010440019,0.339653,100900.0,100890.0,0.559135]
[1738010440226,0.502138,100900.0,100880.0,0.5364874]
[1738010440424,0.339672,100890.0,100880.0,0.7348414]
[1738010440730,0.14788573,100890.0,100880.0,0.56130322]
[1738010440924,0.14788573,100890.0,100880.0,0.55930322]
[1738010441126,0.34621973,100890.0,100880.0,2.05930322]
[1738010441633,0.34621973,100890.0,100880.0,2.06130322]
[1738010441836,0.235254,100880.0,100850.0,0.00295671]
[1738010442129,0.198409,100850.0,100830.0,0.198439]
[1738010442330,0.700547,100850.0,100830.0,0.198439]
[1738010442532,0.700547,100850.0,100830.0,0.559239]
[1738010443028,0.50228722,100850.0,100830.0,0.19859622]
[1738010443222,0.70057,100840.0,100830.0,0.19859622]
[1738010444126,0.70057,100840.0,100830.0,0.00014922]
[1738010444724,0.70257,100840.0,100830.0,0.00014922]
[1738010445530,0.70357,100840.0,100830.0,0.00014922]
[1738010446542,0.144338,100840.0,100830.0,0.19859922]
[1738010446830,0.003,100840.0,100830.0,0.55939922]
[1738010447029,0.003,100840.0,100830.0,1.22533722]
[1738010447621,0.003,100840.0,100830.0,1.08399922]
[1738010449243,0.201442,100840.0,100830.0,0.37751908]
[1738010449427,0.003,100840.0,100830.0,0.73831908]
[1738010451431,0.003,100840.0,100830.0,2.23831908]
[1738010451733,0.703571,100840.0,100830.0,1.76821908]
[1738010452331,0.703571,100840.0,100830.0,0.01526908]
[1738010452532,0.703571,100840.0,100830.0,0.00014922]
[1738010452732,0.562233,100840.0,100830.0,0.19860222]
[1738010453041,0.703571,100840.0,100830.0,0.00014922]
[1738010453729,0.703571,100840.0,100830.0,0.19860122]
[1738010455436,0.562233,100840.0,100830.0,0.19860122]